Cogmind - Beta 16.1 @@@ ROGUE MODE // 2026.03.14 @ 13:00:18 Player: bschuck Result: Self-destructed Performance ------------- Evolutions (2) 1000 Regions Visited (3) 600 Robots Destroyed (20) 100 Value Destroyed (636) 636 Prototype IDs (1) 20 Alien Tech Used (0) 0 Bonus (0) 0 TOTAL SCORE: 2356 Bonus ------- None Cogmind --------- Core Integrity 525/550 Matter 126/300 Energy 2/100 System Corruption 0% Temperature Cool (0) Movement Treading (160) Location -8/Materials Parts ------- > --- POWER (2) -------- (None) > --- PROPULSION (2) --- Light Treads Improved Treads > --- UTILITY (4) ------ Cooling System Small Storage Unit Structural Scanner High-powered Tractor Beam > --- WEAPON (3) ------- Heavy Assault Rifle Light Cannon > --- INVENTORY (8) ---- Improved Treads Wheel Improved Heat Sink High-capacity Matter Pod (0) Recoil Stabilizer Reaction Control System Reaction Control System Peak State ------------ > --- POWER ------------ Improved Ion Engine > --- PROPULSION ------- Compact Wheel Compact Wheel > --- UTILITY ---------- Small Storage Unit Medium Battery Structural Scanner > --- WEAPON ----------- Improved Light Cannon Mining Claw Katana > --- INVENTORY -------- Light Treads Cooling System Reaction Control System Reaction Control System High-powered Tractor Beam Small Laser Improved Assault Rifle [Rating: 14] Favorites ----------- Power Ion Engine Engine Ion Engine Propulsion Aluminum Leg Treads Light Treads Leg Aluminum Leg Wheel Compact Wheel Utility Small Storage Unit Device Structural Scanner Storage Small Storage Unit Protection Light Armor Plating Weapon Light Assault Rifle Energy Gun Small Laser Ballistic Gun Light Assault Rifle Ballistic Cannon Improved Light Cannon Launcher Grenade Launcher Slashing Weapon Mining Claw Build | -11 -10 -9 -8 ------- Run | Yrd Mat Mat Mat Slots Evolved 4 | . . 2 2 Power 1 | . . . 1 Propulsion . | . . . . Utility 2 | . . 1 1 Weapon 1 | . . 1 . Parts Attached 24 | 5 2 12 5 Power 3 | 1 . 2 . Engine 3 | 1 . 2 . Core . | . . . . Reactor . | . . . . Propulsion 6 | 1 1 3 1 Treads 2 | . . 1 1 Leg 2 | 1 1 . . Wheel 2 | . . 2 . Hover . | . . . . Flight . | . . . . Utility 6 | 1 1 2 2 Device 3 | . . 1 2 Storage 2 | 1 . 1 . Processor . | . . . . Hackware . | . . . . Protection 1 | . 1 . . Artifact . | . . . . Weapon 9 | 2 . 5 2 Energy Gun 1 | . . 1 . Energy Cannon . | . . . . Ballistic Gun 3 | 2 . . 1 Ballistic Cannon 2 | . . 1 1 Launcher 1 | . . 1 . Special Weapon . | . . . . Impact Weapon . | . . . . Slashing Weapon 2 | . . 2 . Piercing Weapon . | . . . . Special Melee Weapon . | . . . . Unidentified Prototypes 1 | . . 1 . Parts Lost 12 | . . 12 . Power 2 | . . 2 . Propulsion 4 | . . 4 . Utility . | . . . . Weapon 6 | . . 6 . Highest Loss Streak 9 | . . 9 . To Critical Strikes . | . . . . Average Backups 6 | 4 7 5 5 Power . | . 1 . . Propulsion 1 | 2 3 1 . Utility 2 | . . 2 5 Weapon 1 | . 2 1 . Tool/Special . | . . . . Unused Backups 7 | . . 1 6 Power . | . . . . Propulsion 1 | . . . 1 Utility 5 | . . . 5 Weapon 1 | . . 1 . Tool/Special . | . . . . Average Slot Usage (%) 81 | . 95 84 55 Engine 8 | . 14 8 . Treads 4 | . . 2 14 Leg 11 | . 25 6 . Wheel 4 | . . 11 . Device 8 | . . 10 19 Storage 16 | . 14 18 16 Protection 3 | . 11 . . Ballistic Gun 14 | . 28 11 1 Ballistic Cannon 2 | . . 4 3 Launcher 1 | . . 3 . Slashing Weapon 3 | . . 7 . Peak Build Rating 14 | 5 7 14 14 Average Rating 7 | 4 6 9 9 On Entrance 4 | . 5 7 5 Avg Prop Armor Cover (%) 5 | . . 5 . Naked Turns . | . . . . Heaviest Build 23 | 13 16 23 15 Greatest Support 43 | 10 20 32 43 Greatest Overweight (x) 3 | 1 1 3 . Average Overweight (x) . | . . . . Largest Inventory Capacity 8 | 8 8 8 8 Average Capacity 7 | 7 8 8 8 Most Carried 8 | 6 8 8 8 Average Carried 6 | 4 7 5 5 Final Capacity 8 | 8 8 8 8 Final Carried 8 | 6 8 5 7 Class Distribution -------------------- 88% | Mutant 11% | Skirmisher Dominant Class ---------------- Mutant | -10/Materials Mutant | -9/Materials Mutant | -8/Materials Resources | -11 -10 -9 -8 ----------- Run | Yrd Mat Mat Mat Matter Collected 591 | 250 136 131 74 Remotely 30 | . . . 30 Salvage Created 597 | . 357 169 71 Parts 37 | . 21 12 4 Haulers Intercepted . | . . . . Recyclers Shooed . | . . . . Parts Field Recycled . | . . . . Retrieved Matter . | . . . . Parts Self-Destructed . | . . . . Prevented . | . . . . Parts Restored . | . . . . Kills | -11 -10 -9 -8 ------- Run | Yrd Mat Mat Mat Combat Hostiles Destroyed 18 | . 8 9 1 Guns 10 | . 8 2 . Cannons 4 | . . 3 1 AOE 4 | . . 4 . Classes Destroyed 5 | . 2 2 1 Worker 1 | . . . 1 Watcher 1 | . 1 . . Swarmer 3 | . . 3 . Grunt 12 | . 8 4 . Sentry 3 | . . 2 1 Best Kill Streak 4 | . 4 2 2 Combat Bots Only 4 | . 4 2 1 Max Kills in Single Turn 2 | . 2 2 1 Gunslinging 1 | . 1 . . Exploded 2 | . . 2 . Melee . | . . . . Uniques/NPCs Destroyed . | . . . . Combat | -11 -10 -9 -8 -------- Run | Yrd Mat Mat Mat Hostile Shots Fired 194 | . 49 131 14 Missed 68 | . 19 44 5 Hits 126 | . 30 87 9 Projectile 126 | . 30 87 9 Critical Strikes 3 | . . 3 . Damage Taken 1548 | . 335 1085 128 Core 340 | . 65 250 25 Absorbed by Shields . | . . . . Core Remaining (%) 70 | 100 74 37 . Volleys Fired 67 | . 29 33 5 Largest 3 | . 2 3 2 Hottest 70 | . 40 70 53 Shots Fired 131 | . 58 67 6 Gun 101 | . 58 42 1 Cannon 18 | . . 13 5 Launcher 12 | . . 12 . Special . | . . . . Kinetic 115 | . 58 51 6 Thermal 4 | . . 4 . Explosive 12 | . . 12 . Electromagnetic . | . . . . Robot Hit Streak 6 | . 6 5 3 Robot Miss Streak 4 | . 4 4 1 Penetration Max . | . . . . Secondary Targets 4 | . 4 . . Max Gunslinging Chain 1 | . 1 . . Shots Hit Robots 76 | . 37 35 4 Core Hits 36 | . 19 14 3 Critical Kills . | . . . . Critical Parts Destroyed . | . . . . Critical Strikes 1 | . . 1 . Destroy 1 | . . 1 . Melee Attacks 1 | . . 1 . Impact . | . . . . Slashing 1 | . . 1 . Piercing . | . . . . Sneak Attacks . | . . . . Combat Hostiles . | . . . . Follow-up Attacks . | . . . . Damage Inflicted 1399 | . 412 904 83 Guns 588 | . 412 160 16 Cannons 272 | . . 220 52 Explosions 491 | . . 491 . Melee 33 | . . 33 . Ramming 15 | . . . 15 Kinetic 840 | . 412 360 68 Thermal 98 | . . 98 . Explosive 413 | . . 413 . Electromagnetic . | . . . . Impact . | . . . . Slashing 33 | . . 33 . Piercing . | . . . . Highest Corruption . | . . . . Average Corruption . | . . . . Corruption Purged . | . . . . Corruption Blocked . | . . . . Overload Shots . | . . . . Overflow Damage 14 | . . 14 . Projectiles . | . . . . Explosions 14 | . . 14 . Melee . | . . . . Knockbacks 2 | . . 2 . Impact . | . . . . Kinetic 2 | . . 2 . Secondary . | . . . . Self-Inflicted Damage 53 | . . 53 . Shots 3 | . . 3 . Rammed 3 | . . . 3 Targets Rammed 3 | . . . 3 Kicked . | . . . . Crushed . | . . . . Highest Temperature 41 | . 36 41 . Average Temperature 14 | . 11 18 . Received Heat Transfer 705 | . 189 498 18 Siege Activations . | . . . . Martial Activations . | . . . . Shielding Activations . | . . . . Robots Disrupted . | . . . . Combat Hostiles . | . . . . Robots Corrupted . | . . . . Combat Hostiles . | . . . . Parts Fried . | . . . . Impact Corruptions . | . . . . Robots Melted . | . . . . Combat Hostiles . | . . . . Parts Melted . | . . . . Heat Transferred 100 | . . 100 . Parts Sabotaged . | . . . . Parts Stolen . | . . . . Parts Stripped . | . . . . Power Chain Reactions . | . . . . Alert | -11 -10 -9 -8 ------- Run | Yrd Mat Mat Mat Maximum Alert Level 1 | . . 1 . Low Security (%) 80 | 100 100 48 100 Level 1 19 | . . 51 . Level 2 . | . . . . Level 3 . | . . . . Level 4 . | . . . . Level 5 . | . . . . High Security . | . . . . Max Security . | . . . . Peak Influence 247 | . 147 247 53 Initial 61 | . . 61 53 Average 86 | . 37 180 27 Influence Increases 593 | . 207 336 50 Destroy 0b10 Robot/C 360 | . 160 180 20 Destroy 0b10 Robot/NC 10 | . 5 . 5 Destroy Leader 102 | . 42 50 10 Disable Machine 30 | . . 30 . Destroy Structure 76 | . . 76 . Partial Spotted 15 | . . . 15 Influence Decreases 553 | . 60 356 137 Entered New Map 160 | . . 86 74 Time Decay 273 | . 60 150 63 Lost Part 120 | . . 120 . Squads Dispatched 5 | . 3 1 1 Investigation 1 | . 1 . . Extermination . | . . . . Reinforcement 4 | . 2 1 1 Assault . | . . . . Garrison . | . . . . Intercept . | . . . . Searches Triggered . | . . . . Construction Impeded . | . . . . Haulers Reinforced . | . . . . Active Scanning Responses . | . . . . Cargo Convoy Interrupts . | . . . . Stealth | -11 -10 -9 -8 --------- Run | Yrd Mat Mat Mat Distress Signals 2 | . 1 . 1 Communications Jammed . | . . . . Distress Signals . | . . . . Times Spotted 35 | . 14 15 6 Peak Tracking Total 5 | . 5 5 2 Tactical Retreats . | . . . . Traps | -11 -10 -9 -8 ------- Run | Yrd Mat Mat Mat Traps Triggered 1 | . 1 . . Indirectly . | . . . . Trap Hack Attempts . | . . . . Triggered . | . . . . Disarmed . | . . . . Reprogrammed . | . . . . Reused . | . . . . Traps Extracted . | . . . . Installed . | . . . . Triggered . | . . . . Machines | -11 -10 -9 -8 ---------- Run | Yrd Mat Mat Mat Machines Disabled 2 | . . 2 . Max in Single Turn 2 | . . 2 . Machines Repaired . | . . . . Machines Dismantled . | . . . . Machines Sabotaged . | . . . . Overloaded Fab Kills . | . . . . Hacking | -11 -10 -9 -8 --------- Run | Yrd Mat Mat Mat Machines Accessed 1 | . 1 . . Terminals 1 | . 1 . . Fabricators . | . . . . Repair Stations . | . . . . Recycling Units . | . . . . Scanalyzers . | . . . . Garrison Access . | . . . . Total Hacks 1 | . 1 . . Successful 1 | . 1 . . Failed . | . . . . Catastrophic . | . . . . Database Lockouts . | . . . . Manual . | . . . . Terminals 1 | . 1 . . Fabricators . | . . . . Repair Stations . | . . . . Recycling Units . | . . . . Scanalyzers . | . . . . Garrison Access . | . . . . Terminal Hacks 1 | . 1 . . Alert Level 1 | . 1 . . Fabricator Hacks . | . . . . Repair Station Hacks . | . . . . Recycling Unit Hacks . | . . . . Scanalyzer . | . . . . Garrison Access Hacks . | . . . . Unauthorized Hacks . | . . . . Terminals . | . . . . Fabricators . | . . . . Repair Stations . | . . . . Recycling Units . | . . . . Scanalyzers . | . . . . Garrison Access . | . . . . Data Cores Recovered . | . . . . Used . | . . . . Hacking Detections . | . . . . Full Trace Events . | . . . . Feedback Events . | . . . . Feedback Blocked . | . . . . Robot Schematics Acquired . | . . . . Robots Built . | . . . . Authchips . | . . . . Time . | . . . . Total Robot Build Rating . | . . . . Part Schematics Acquired . | . . . . Parts Built . | . . . . Authchips . | . . . . Time . | . . . . Total Part Build Rating . | . . . . Part Studies Acquired . | . . . . Parts Repaired . | . . . . Time . | . . . . Parts Recycled . | . . . . Recycled Matter . | . . . . Retrieved Matter . | . . . . Retrieved Components . | . . . . Parts Scanalyzed . | . . . . Part Schematics Acquired . | . . . . Parts Damaged . | . . . . Bothacking | -11 -10 -9 -8 ------------ Run | Yrd Mat Mat Mat Used RIF Installer . | . . . . Robots Hacked . | . . . . Non-combat . | . . . . Combat . | . . . . Robot Hacks Applied . | . . . . Relay Couplers Released . | . . . . Fabnet Peak Effective % . | . . . . Robots Rewired . | . . . . Allies Hacked . | . . . . Hacks Repelled . | . . . . Allies | -11 -10 -9 -8 -------- Run | Yrd Mat Mat Mat Total Allies . | . . . . Largest Group . | . . . . Highest-Rated Group . | . . . . Highest-Rated Ally . | . . . . Total Orders . | . . . . Ally Attacks . | . . . . Total Damage . | . . . . Kills . | . . . . Allies Corrupted . | . . . . Allies Melted . | . . . . Intel | -11 -10 -9 -8 ------- Run | Yrd Mat Mat Mat Active Infowar (turns) 455 | . . 297 158 Structural 455 | . . 297 158 Robot Analysis Total . | . . . . Derelict Logs Recovered . | . . . . Drone Launches . | . . . . Drone Recoveries . | . . . . Exploration | -11 -10 -9 -8 ------------- Run | Yrd Mat Mat Mat Turns Passed 777 | 88 231 300 158 Spaces Moved 401 | 47 111 162 81 Core 14 | 13 . 1 . Treads 109 | . . 28 81 Legs 178 | 34 111 33 . Wheels 100 | . . 100 . Hover . | . . . . Flight . | . . . . Fastest Speed 50 | 50 120 100 160 Average Speed 133 | 156 130 115 160 Slowest Speed 200 | 190 190 200 160 Overloaded Moves . | . . . . Propulsion Burnouts . | . . . . Robots Hopped . | . . . . Potential Cave-ins . | . . . . Cave-ins Triggered . | . . . . Exploration Rate (%) 12 | 3 19 19 9 Regions Visited 3 Branch Regions . Pre-discovered Areas . | . . . . Known Exits Taken . | . . . . Unknown Exits Taken 3 | 1 1 1 . Scrap Searched . | . . . . Spaces Dug . | . . . . Terrain Destroyed 91 | . . 91 . Melee . | . . . . Projectile . | . . . . AOE 91 | . . 91 . Terrain Rammed . | . . . . Walls Destroyed . | . . . . Machines Disabled . | . . . . Actions | -11 -10 -9 -8 --------- Run | Yrd Mat Mat Mat Total 530 | 62 145 221 102 Wait . | . . . . Move 398 | 46 110 161 81 Hop . | . . . . Pick Up 31 | 11 4 9 7 Fast Attach . | . . . . Attach 24 | 5 2 12 5 Detach . | . . . . Swap 1 | . . 1 . Drop 5 | . . 4 1 Fire 67 | . 29 33 5 Melee 1 | . . 1 . Ram . | . . . . Kick . | . . . . Crush 3 | . . . 3 Escape Stasis . | . . . . Rewire . | . . . . Trap . | . . . . Miscellaneous . | . . . . Route ------- -11/Scrapyard -10/Materials -9/Materials -8/Materials History --------- Turn | Location | Event 42 | -11/Scrapyard | Discovered new exit (range 14) 89 | -11/Scrapyard | Entered Materials 265 | -10/Materials | Discovered new exit (range 16) 314 | -10/Materials | Build established: Mutant 320 | -10/Materials | Entered another Materials area 320 | -9/Materials | Evolved 2 slots: Utility x1, Weapon x1 439 | -9/Materials | Lost 3 parts (1p2n) 457 | -9/Materials | Discovered new exit (range 10) 572 | -9/Materials | Core integrity fell below 50% 619 | -9/Materials | Lost 9 parts (1p2n6w) 620 | -9/Materials | Entered another Materials area 620 | -8/Materials | Evolved 2 slots: Power x1, Utility x1 778 | -8/Materials | Self-destructed Last Messages --------------- Slammed into K-01 Serf. Slammed into A-02 Transporter. Acquired Imp. Treads. Acquired Hcp. Matter Pod. Acquired Recoil Stabilizer. K-01 Serf collects debris. Acquired Lgt. Cannon. ALERT: Suspicious intruders detected, dispatching Specialist reinforcements to area. Y-45 Defender destroyed. Acquired Hvy. Assault Rifle. R-06 Scavenger collects Lgt. Armor Plating. Acquired 44 matter. Dropped Med. Battery. R-06 Scavenger collects Med. Battery. Acquired 1 matter. K-01 Serf collects debris. K-01 Serf destroyed. Acquired 29 matter. Acquired Wheel. Map ----- +----------------------------------------------------+ | ?????????????????????????????????????????????????? | | ?????????????????????????????????????????????????? | | ?????????????????????????????????????????????????? | | ?????????????????????????????????????????????????? | | ?????????????????????????????????????????????????? | | ?????????????????????????????????????????????????? | | ?????????????????????????????????????????????????? | | ?????????????????????????????????????????????????? | | ?????????????????????????????????????????????????? | | ?????????????????????????????????????????????????? | | ?????????????????????????????????????????????????? | | ?????????????????????????????????????????????????? | | ?????????????????????????????????????????????????? | | ?????????????????????????????????????????????????? | | ?????????????????? ??????????????????????????????? | | ?????????????????? ??????????????????????????????? | | ??????????????????^??????????????????????????????? | | ?????????????????? ??????????????????????????????? | | ???????????????? # ##????????????????????????????? | | ???????????????? # ##????????????????????????????? | | ???????????????? # #########?????????????????????? | | ???????????????? # ##########????????????????????? | | ???????????????? + ###!!!!###????????????????????? | | ???????????????### ##! !##????????????H???????? | | ??????????????? ## ## ##????????????????????? | | ??????????????? # # @###????????????????????? | | ??????????????? + T ##?????????????????????? | | ??????????????? # #####r##?????????????????????? | | ??????????????? ## ###### #########??????????????? | | ??????????????? ##+######=#########??????????????? | | ???##########??## # # ##??????????????? | | ???##########??##""" # # """##??????????????? | | ???## """ ##??##"R ! # # """##??????????????? | | ???## """ ##??##""" + + """##??????????????? | | ???## """ ###### # # ##??????????????? | | ???## ############## # !##??????????????? | | ???## ## #### #########??????????????? | | ???## ## """ ####x#########??????????????? | | ???#####+#### """ ####x##?????????????????????? | | ???## # """ #### ####???????????????????? | | ???## + #### ####???????????????????? | | ???## # ! ## ##???????????????????? | | ???###### # "T" ## ##???????????????????? | | ???###### # """ / " # ???????????????????? | | ???????## # ## # ???????????????????? | | ???????## ########### # ???????????????????? | | ???????## ############ ## ???????????????????? | | ??????? # ##???????### ## ???????????????????? | | ??????? # ##????????## ##????????????????????? | | ??????? # ##????????## ##????????????????????? | +----------------------------------------------------+ Best States ------------- Heat Dissipation 53 Energy Generation 12 Energy Capacity 415 Matter Stores 300 Matter Capacity 300 Sight Range 16 Terrain Scan Density 10 Armor Coverage 150 Evasion (%) 55 Recoil Reduction 2 Item Schematics ----------------- None Robot Schematics ------------------ None Fabricated ------------ Nothing Repaired ---------- Nothing Studied --------- None Alien Tech Used ----------------- None Achievements -------------- None Challenges ------------ None Game ------ Seed AmuletSpectralExpander Manual? 0 Play Time 00:18:05 Cumulative 29.5 hours Start 2026.03.14 @ 12:43:38 End 2026.03.14 @ 13:00:18 Sessions 1 Manual Loads 0 Difficulty Rogue Special Mode None Game No. 46 Rogue 35 Adventurer 0 Explorer 11 Win Type - Total 0 Types 0/0/0/0/0/0/0/0/0/0 Lore% 5 Gallery% 23 Achievement% 14 Wizard Run 0 Options --------- Layout 1 ASCII 0 Keyboard 0 Movement Mouse Keybinds 0 Fullscreen 1 Font 32/SmallcapsGlow Map View 50x35 Zoom Use 0% Tactical HUD 0 Map Filters NONE Filters NONE Steam 1 RUN: b3029a51-37eb-4aa7-b65d-ba674d146a40